[Event "Torneo Nuevo Centro. Jornada 10"]
[Site "Chess.com"]
[Date "2020.08.21"]
[Round "9"]
[White "Aymerich Rosell, Pablo"]
[Black "Leal Uribe, Jhonny Alberto"]
[Result "1/2-1/2"]
[WhiteElo "2004"]
[BlackElo "2428"]
[TimeControl "180+2"]
[EndTime "12:09:25 PDT"]
[Termination "Partida en tablas por material insuficiente"]

1. e4 {[%clk 0:03:01.9]} 1... c5 {[%clk 0:02:56.6]} 2. Nf3 {[%clk 0:03:02.3]}
2... Nc6 {[%clk 0:02:58]} 3. Bb5 {[%clk 0:03:02.4]} 3... Nb8 {[%clk 0:02:58.8]}
4. O-O {[%clk 0:03:01.4]} 4... a6 {[%clk 0:02:59.3]} 5. Be2 {[%clk 0:03:02.2]}
5... e6 {[%clk 0:03:00.8]} 6. c3 {[%clk 0:03:03]} 6... d5 {[%clk 0:03:01.2]} 7.
exd5 {[%clk 0:03:03.4]} 7... Qxd5 {[%clk 0:03:02.6]} 8. d4 {[%clk 0:03:03.9]}
8... cxd4 {[%clk 0:03:04.5]} 9. cxd4 {[%clk 0:03:02.7]} 9... Nf6 {[%clk
0:03:05.4]} 10. Nc3 {[%clk 0:03:03.5]} 10... Qd8 {[%clk 0:03:06.8]} 11. Bg5
{[%clk 0:03:03.5]} 11... Be7 {[%clk 0:03:08.3]} 12. Re1 {[%clk 0:03:02.1]} 12...
O-O {[%clk 0:03:07.1]} 13. Rc1 {[%clk 0:03:02.5]} 13... b5 {[%clk 0:03:08.1]}
14. Ne5 {[%clk 0:02:58.6]} 14... Bb7 {[%clk 0:03:08.2]} 15. Bf3 {[%clk
0:02:59.6]} 15... Qb6 {[%clk 0:03:08.6]} 16. Bxb7 {[%clk 0:02:50]} 16... Qxb7
{[%clk 0:03:07.9]} 17. Bxf6 {[%clk 0:02:40.5]} 17... gxf6 {[%clk 0:03:04.9]} 18.
Ng4 {[%clk 0:02:24.2]} 18... f5 {[%clk 0:03:00.3]} 19. Nh6+ {[%clk 0:02:22.3]}
19... Kh8 {[%clk 0:03:01.7]} 20. Qh5 {[%clk 0:02:21.1]} 20... Bf6 {[%clk
0:03:01.5]} 21. d5 {[%clk 0:02:17.9]} 21... b4 {[%clk 0:02:56.8]} 22. dxe6
{[%clk 0:02:07.4]} 22... bxc3 {[%clk 0:02:52.8]} 23. Nxf7+ {[%clk 0:02:02.1]}
23... Rxf7 {[%clk 0:02:54.2]} 24. exf7 {[%clk 0:02:02.2]} 24... Kg7 {[%clk
0:02:45.9]} 25. f8=Q+ {[%clk 0:01:18.8]} 25... Kxf8 {[%clk 0:02:44.1]} 26. Re8+
{[%clk 0:01:13.6]} 26... Kg7 {[%clk 0:02:44.4]} 27. bxc3 {[%clk 0:00:55.8]}
27... Nc6 {[%clk 0:02:42.1]} 28. Rxa8 {[%clk 0:00:49.7]} 28... Qxa8 {[%clk
0:02:43.1]} 29. Qxf5 {[%clk 0:00:50.7]} 29... Qe8 {[%clk 0:02:39.6]} 30. Rd1
{[%clk 0:00:49]} 30... Qg6 {[%clk 0:02:19.4]} 31. Rd7+ {[%clk 0:00:42.5]} 31...
Ne7 {[%clk 0:02:19.9]} 32. Qf3 {[%clk 0:00:28.3]} 32... Qb1+ {[%clk 0:02:18.1]}
33. Rd1 {[%clk 0:00:28.2]} 33... Qxa2 {[%clk 0:02:19.5]} 34. g3 {[%clk 0:00:25]}
34... Qe6 {[%clk 0:02:15.6]} 35. h4 {[%clk 0:00:22.4]} 35... a5 {[%clk
0:02:13.9]} 36. h5 {[%clk 0:00:17.5]} 36... a4 {[%clk 0:02:12.1]} 37. c4 {[%clk
0:00:17.5]} 37... Qxc4 {[%clk 0:02:07.7]} 38. h6+ {[%clk 0:00:18.6]} 38... Kf7
{[%clk 0:02:08.9]} 39. Qh5+ {[%clk 0:00:17.1]} 39... Ng6 {[%clk 0:02:10.4]} 40.
Rd7+ {[%clk 0:00:16.3]} 40... Be7 {[%clk 0:02:11.4]} 41. Qf5+ {[%clk 0:00:14.9]}
41... Ke8 {[%clk 0:02:13]} 42. Ra7 {[%clk 0:00:09.4]} 42... Qc1+ {[%clk
0:02:10.7]} 43. Kh2 {[%clk 0:00:09.2]} 43... Qxh6+ {[%clk 0:02:11.2]} 44. Kg2
{[%clk 0:00:09]} 44... Qc1 {[%clk 0:02:09.5]} 45. Rxa4 {[%clk 0:00:08.7]} 45...
Qc6+ {[%clk 0:02:10.7]} 46. Qe4 {[%clk 0:00:09.9]} 46... Qxe4+ {[%clk
0:02:10.8]} 47. Rxe4 {[%clk 0:00:11.8]} 47... Kf7 {[%clk 0:02:12.6]} 48. Re2
{[%clk 0:00:12.1]} 48... Bf6 {[%clk 0:02:10.5]} 49. Ra2 {[%clk 0:00:12.2]} 49...
h5 {[%clk 0:02:09.5]} 50. Ra5 {[%clk 0:00:12.4]} 50... h4 {[%clk 0:02:10.6]} 51.
gxh4 {[%clk 0:00:12.8]} 51... Bxh4 {[%clk 0:02:11.9]} 52. Ra7+ {[%clk
0:00:13.1]} 52... Be7 {[%clk 0:02:12.7]} 53. Rxe7+ {[%clk 0:00:13.1]} 53... Nxe7
{[%clk 0:02:14.6]} 54. f4 {[%clk 0:00:14.1]} 54... Kf6 {[%clk 0:02:16.5]} 55. f5
{[%clk 0:00:15.4]} 55... Kxf5 {[%clk 0:02:18.4]} 1/2-1

[Event "Torneo Nuevo Centro. Jornada 10"]
[Site "Chess.com"]
[Date "2020.08.21"]
[Round "9"]
[White "Escalona Moncholi, Felix"]
[Black "Fenollar Jorda, Manolo"]
[Result "1/2-1/2"]
[WhiteElo "2104"]
[BlackElo "2465"]
[TimeControl "180+2"]
[EndTime "12:09:43 PDT"]
[Termination "Tablas por repeticiÃ³n"]

1. e4 {[%clk 0:03:01.9]} 1... e5 {[%clk 0:03:00.8]} 2. Nf3 {[%clk 0:03:02.5]}
2... Nc6 {[%clk 0:03:01.1]} 3. Bb5 {[%clk 0:03:03.3]} 3... a6 {[%clk 0:03:01.7]}
4. Ba4 {[%clk 0:03:03.9]} 4... Nf6 {[%clk 0:03:02.6]} 5. O-O {[%clk 0:03:04.1]}
5... b5 {[%clk 0:03:02.8]} 6. Bb3 {[%clk 0:03:04.4]} 6... Bc5 {[%clk 0:03:04.2]}
7. c3 {[%clk 0:02:53.2]} 7... d6 {[%clk 0:03:05.4]} 8. h3 {[%clk 0:02:48.7]}
8... O-O {[%clk 0:03:05.7]} 9. Re1 {[%clk 0:02:45.4]} 9... Bb7 {[%clk
0:03:06.5]} 10. d3 {[%clk 0:02:46]} 10... Bb6 {[%clk 0:03:02.9]} 11. Nbd2 {[%clk
0:02:44.5]} 11... Ne7 {[%clk 0:03:03.2]} 12. Nf1 {[%clk 0:02:41.6]} 12... Ng6
{[%clk 0:03:03.4]} 13. Ng3 {[%clk 0:02:40.4]} 13... h6 {[%clk 0:02:57.6]} 14.
Be3 {[%clk 0:02:36.9]} 14... Kh7 {[%clk 0:02:57.1]} 15. Qd2 {[%clk 0:02:29.4]}
15... Ng8 {[%clk 0:02:52.3]} 16. Rad1 {[%clk 0:02:26.2]} 16... N6e7 {[%clk
0:02:50.6]} 17. Bc2 {[%clk 0:02:23.2]} 17... Qd7 {[%clk 0:02:34]} 18. Bxb6
{[%clk 0:02:15.8]} 18... cxb6 {[%clk 0:02:35.9]} 19. d4 {[%clk 0:02:15.5]} 19...
Qc7 {[%clk 0:02:32.6]} 20. dxe5 {[%clk 0:02:00.5]} 20... dxe5 {[%clk 0:02:34.5]}
21. Qd7 {[%clk 0:02:00.4]} 21... Rac8 {[%clk 0:02:26.2]} 22. Qxc7 {[%clk
0:01:56.7]} 22... Rxc7 {[%clk 0:02:28.1]} 23. Nxe5 {[%clk 0:01:54.2]} 23... Nf6
{[%clk 0:02:17.7]} 24. f4 {[%clk 0:01:37.3]} 24... Kg8 {[%clk 0:02:08.1]} 25.
Rd2 {[%clk 0:01:33.7]} 25... Re8 {[%clk 0:02:02.5]} 26. Bb3 {[%clk 0:01:31.9]}
26... Nc6 {[%clk 0:01:54.2]} 27. Nxc6 {[%clk 0:01:22.6]} 27... Bxc6 {[%clk
0:01:56.1]} 28. e5 {[%clk 0:01:20.1]} 28... Nd7 {[%clk 0:01:09.9]} 29. e6 {[%clk
0:00:58.4]} 29... fxe6 {[%clk 0:01:07.5]} 30. Rxe6 {[%clk 0:00:59.6]} 30... Kf8
{[%clk 0:01:01.4]} 31. Rxe8+ {[%clk 0:00:52.9]} 31... Kxe8 {[%clk 0:01:03.3]}
32. Bd5 {[%clk 0:00:45.2]} 32... Bxd5 {[%clk 0:00:56.8]} 33. Rxd5 {[%clk
0:00:47.1]} 33... Nc5 {[%clk 0:00:58.3]} 34. Rd6 {[%clk 0:00:27.9]} 34... Na4
{[%clk 0:00:55.7]} 35. Rd2 {[%clk 0:00:26.7]} 35... Rd7 {[%clk 0:00:50.4]} 36.
Re2+ {[%clk 0:00:24.9]} 36... Kf7 {[%clk 0:00:51.2]} 37. Ne4 {[%clk 0:00:25.8]}
37... Rd1+ {[%clk 0:00:46.7]} 38. Kf2 {[%clk 0:00:26.4]} 38... Nc5 {[%clk
0:00:46.1]} 39. Nxc5 {[%clk 0:00:26.8]} 39... bxc5 {[%clk 0:00:48]} 40. a3
{[%clk 0:00:25.2]} 40... Kf6 {[%clk 0:00:49.1]} 41. g4 {[%clk 0:00:26.1]} 41...
Rd3 {[%clk 0:00:48.4]} 42. Re3 {[%clk 0:00:26.2]} 42... Rd2+ {[%clk 0:00:49.1]}
43. Re2 {[%clk 0:00:27.4]} 43... Rd3 {[%clk 0:00:50.4]} 44. Re3 {[%clk
0:00:28.8]} 44... Rd2+ {[%clk 0:00:51.6]} 45. Re2 {[%clk 0:00:30.1]} 45... Rd3
{[%clk 0:00:52.4]} 1/2-1

[Event "Torneo Nuevo Centro. Jornada 10"]
[Site "Chess.com"]
[Date "2020.08.21"]
[Round "9"]
[White "Maestre Soler, Sergio"]
[Black "Miranda Calvo, Max Rodrigo"]
[Result "0-1"]
[WhiteElo "943"]
[BlackElo "1355"]
[TimeControl "180+2"]
[EndTime "12:09:49 PDT"]
[Termination "Victoria de bas-max-miranda por tiempo"]

1. e4 {[%clk 0:03:01.7]} 1... e5 {[%clk 0:03:00.1]} 2. Bc4 {[%clk 0:03:02.3]}
2... Nc6 {[%clk 0:02:35.7]} 3. Nc3 {[%clk 0:03:00.7]} 3... Nf6 {[%clk
0:02:30.4]} 4. Nf3 {[%clk 0:03:00.9]} 4... Nxe4 {[%clk 0:02:27.9]} 5. Nxe4
{[%clk 0:02:59.9]} 5... d5 {[%clk 0:02:23.5]} 6. Bxd5 {[%clk 0:02:55.1]} 6...
Qxd5 {[%clk 0:02:20.3]} 7. Nc3 {[%clk 0:02:55]} 7... Qd6 {[%clk 0:02:16.5]} 8.
O-O {[%clk 0:02:44.9]} 8... Bg4 {[%clk 0:02:15.6]} 9. Nb5 {[%clk 0:02:39.8]}
9... Qd7 {[%clk 0:02:09.1]} 10. h3 {[%clk 0:02:25.6]} 10... Bh5 {[%clk 0:02:04]}
11. d3 {[%clk 0:02:15.5]} 11... a6 {[%clk 0:01:52.2]} 12. Nc3 {[%clk 0:02:09.8]}
12... Bd6 {[%clk 0:01:21]} 13. Bg5 {[%clk 0:01:48.6]} 13... f6 {[%clk
0:01:17.9]} 14. Be3 {[%clk 0:01:35.7]} 14... O-O {[%clk 0:01:12.3]} 15. a3
{[%clk 0:01:28.9]} 15... Bxf3 {[%clk 0:01:01.1]} 16. Qxf3 {[%clk 0:01:28.7]}
16... Nd4 {[%clk 0:00:58.1]} 17. Bxd4 {[%clk 0:01:25.6]} 17... exd4 {[%clk
0:00:58.3]} 18. Nd5 {[%clk 0:01:24.1]} 18... c6 {[%clk 0:00:50.1]} 19. Nf4
{[%clk 0:01:23.4]} 19... Bxf4 {[%clk 0:00:50.2]} 20. Qxf4 {[%clk 0:01:24]} 20...
Rfe8 {[%clk 0:00:46.4]} 21. Rae1 {[%clk 0:01:11]} 21... Qd5 {[%clk 0:00:39.2]}
22. Rxe8+ {[%clk 0:01:10.6]} 22... Rxe8 {[%clk 0:00:39.9]} 23. Qc7 {[%clk
0:01:07.9]} 23... Qb5 {[%clk 0:00:37.2]} 24. b4 {[%clk 0:00:45]} 24... Qe5
{[%clk 0:00:28]} 25. Qxb7 {[%clk 0:00:20.1]} 25... Qb5 {[%clk 0:00:25.1]} 26.
Ra1 {[%clk 0:00:07.4]} 26... Qxb7 {[%clk 0:00:25.1]} 27. a4 {[%clk 0:00:05.5]}
27... Re6 {[%clk 0:00:22.2]} 28. b5 {[%clk 0:00:03]} 28... cxb5 {[%clk
0:00:20.2]} 29. axb5 {[%clk 0:00:04]} 29... axb5 {[%clk 0:00:22.1]} 0

[Event "Torneo Nuevo Centro. Jornada 10"]
[Site "Chess.com"]
[Date "2020.08.21"]
[Round "9"]
[White "Buenafe Moya, Javier"]
[Black "Gutierrez Marco, Dario"]
[Result "1-0"]
[WhiteElo "1900"]
[BlackElo "1822"]
[TimeControl "180+2"]
[EndTime "12:09:53 PDT"]
[Termination "Victoria de JavierBuenafeMoya por abandono"]

1. c4 {[%clk 0:03:01.9]} 1... e5 {[%clk 0:02:58.4]} 2. Nc3 {[%clk 0:02:50.9]}
2... Nf6 {[%clk 0:02:58.4]} 3. g3 {[%clk 0:02:25.3]} 3... c6 {[%clk 0:02:54.8]}
4. d4 {[%clk 0:02:23.1]} 4... e4 {[%clk 0:02:54]} 5. Bg2 {[%clk 0:02:23]} 5...
d5 {[%clk 0:02:54.7]} 6. f3 {[%clk 0:02:22.7]} 6... Bf5 {[%clk 0:02:48.3]} 7.
Qb3 {[%clk 0:02:19.2]} 7... Qd7 {[%clk 0:02:43.8]} 8. fxe4 {[%clk 0:02:17.5]}
8... dxe4 {[%clk 0:02:27.9]} 9. Bf4 {[%clk 0:02:13.6]} 9... Be7 {[%clk
0:02:17.9]} 10. O-O-O {[%clk 0:02:10.8]} 10... O-O {[%clk 0:02:17.5]} 11. h3
{[%clk 0:02:06.1]} 11... b5 {[%clk 0:02:14.1]} 12. cxb5 {[%clk 0:02:04.6]} 12...
cxb5 {[%clk 0:02:13.5]} 13. Qxb5 {[%clk 0:02:02.8]} 13... Rc8 {[%clk 0:02:09.5]}
14. Qxd7 {[%clk 0:02:03.2]} 14... Nbxd7 {[%clk 0:02:11.4]} 15. e3 {[%clk
0:02:02.4]} 15... Bb4 {[%clk 0:02:06.9]} 16. Ne2 {[%clk 0:02:02.4]} 16... Nb6
{[%clk 0:02:07.1]} 17. Kb1 {[%clk 0:01:57.7]} 17... Nc4 {[%clk 0:02:06.7]} 18.
g4 {[%clk 0:01:56.9]} 18... Bg6 {[%clk 0:02:06.6]} 19. g5 {[%clk 0:01:42.8]}
19... Nh5 {[%clk 0:01:54.1]} 20. Bxe4 {[%clk 0:01:43.4]} 20... Nxf4 {[%clk
0:01:50]} 21. exf4 {[%clk 0:01:40.5]} 21... Ne3 {[%clk 0:01:46.8]} 22. Rd3
{[%clk 0:01:35]} 22... Nf5 {[%clk 0:01:26.3]} 23. Rc1 {[%clk 0:01:29.8]} 23...
Rab8 {[%clk 0:01:26.6]} 24. Ka1 {[%clk 0:01:23.5]} 24... Rd8 {[%clk 0:01:18]}
25. d5 {[%clk 0:01:22.8]} 25... Nd6 {[%clk 0:01:16.8]} 26. Bxg6 {[%clk
0:01:22.6]} 26... fxg6 {[%clk 0:01:18.3]} 27. Ng3 {[%clk 0:01:21.4]} 27... Rbc8
{[%clk 0:01:14.9]} 28. Re1 {[%clk 0:01:17.4]} 28... Re8 {[%clk 0:01:06]} 29. Re6
{[%clk 0:01:16.9]} 29... Red8 {[%clk 0:00:58.1]} 30. a3 {[%clk 0:01:16]} 30...
Ba5 {[%clk 0:00:57.6]} 31. b4 {[%clk 0:01:15.5]} 31... Bb6 {[%clk 0:00:58.9]}
32. Nce4 {[%clk 0:01:14.7]} 32... Nxe4 {[%clk 0:00:56]} 33. Nxe4 {[%clk
0:01:15.2]} 33... Rc1+ {[%clk 0:00:56]} 34. Kb2 {[%clk 0:01:15.5]} 34... Rf1
{[%clk 0:00:53.5]} 35. d6 {[%clk 0:00:55.6]} 35... Rxf4 {[%clk 0:00:53.5]} 36.
Nc5 {[%clk 0:00:52.6]} 36... Bxc5 {[%clk 0:00:29.7]} 37. bxc5 {[%clk 0:00:53.2]}
37... Rc4 {[%clk 0:00:31]} 38. Rc3 {[%clk 0:00:52.9]} 38... Rb8+ {[%clk
0:00:26.6]} 39. Kc2 {[%clk 0:00:53.5]} 39... Rd4 {[%clk 0:00:20.7]} 40. c6
{[%clk 0:00:52.4]} 40... Rc8 {[%clk 0:00:21.2]} 41. d7 {[%clk 0:00:51.4]} 41...
Rd8 {[%clk 0:00:19.2]} 42. Re8+ {[%clk 0:00:49.6]} 42... Kf7 {[%clk 0:00:17]}
1

[Event "Torneo Nuevo Centro. Jornada 10"]
[Site "Chess.com"]
[Date "2020.08.21"]
[Round "9"]
[White "Mellado Sais, Carles"]
[Black "Ortiz Benavent, Alba"]
[Result "0-1"]
[WhiteElo "1366"]
[BlackElo "1221"]
[TimeControl "180+2"]
[EndTime "12:10:04 PDT"]
[Termination "Victoria de or20 por abandono"]

1. d4 {[%clk 0:03:01.9]} 1... d5 {[%clk 0:03:00]} 2. Nf3 {[%clk 0:02:58.2]} 2...
Nf6 {[%clk 0:03:00.5]} 3. c4 {[%clk 0:02:55.7]} 3... Bg4 {[%clk 0:02:56.1]} 4.
e3 {[%clk 0:02:55.4]} 4... e6 {[%clk 0:02:53.8]} 5. Nc3 {[%clk 0:02:51.5]} 5...
Nc6 {[%clk 0:02:51.5]} 6. Bd3 {[%clk 0:02:46.8]} 6... Bb4 {[%clk 0:02:49.1]} 7.
O-O {[%clk 0:02:46.1]} 7... O-O {[%clk 0:02:44.3]} 8. Re1 {[%clk 0:02:41.9]}
8... Re8 {[%clk 0:02:36.8]} 9. a3 {[%clk 0:02:37.4]} 9... Bxc3 {[%clk
0:02:34.5]} 10. bxc3 {[%clk 0:02:37]} 10... dxc4 {[%clk 0:02:17.4]} 11. Bxc4
{[%clk 0:02:35.6]} 11... Na5 {[%clk 0:02:13.3]} 12. Bd3 {[%clk 0:02:34.3]} 12...
Nc6 {[%clk 0:02:13.3]} 13. e4 {[%clk 0:02:32.5]} 13... Qd7 {[%clk 0:02:03.6]}
14. e5 {[%clk 0:02:24.5]} 14... Nd5 {[%clk 0:02:01]} 15. c4 {[%clk 0:01:56.8]}
15... Nde7 {[%clk 0:01:50.5]} 16. Bb2 {[%clk 0:01:49.2]} 16... Bxf3 {[%clk
0:01:40.1]} 17. Qxf3 {[%clk 0:01:48.2]} 17... Nxd4 {[%clk 0:01:39.6]} 18. Bxd4
{[%clk 0:01:47.9]} 18... Qxd4 {[%clk 0:01:39.1]} 19. Rad1 {[%clk 0:01:47.7]}
19... Qb6 {[%clk 0:01:33.1]} 20. Qh3 {[%clk 0:01:44]} 20... h6 {[%clk
0:01:31.3]} 21. Re3 {[%clk 0:01:40.2]} 21... Ng6 {[%clk 0:01:28.9]} 22. Bxg6
{[%clk 0:01:33.7]} 22... fxg6 {[%clk 0:01:29.1]} 23. Rg3 {[%clk 0:01:32.9]}
23... g5 {[%clk 0:01:29.5]} 24. Qh5 {[%clk 0:01:20.8]} 24... Rf8 {[%clk
0:01:27.4]} 25. Rf3 {[%clk 0:01:17.3]} 25... Rxf3 {[%clk 0:01:25.7]} 26. Qxf3
{[%clk 0:01:16]} 26... Rf8 {[%clk 0:01:25.4]} 27. Qg3 {[%clk 0:01:13.8]} 27...
Qa6 {[%clk 0:01:09.6]} 28. c5 {[%clk 0:01:09.4]} 28... Qc6 {[%clk 0:01:08.1]}
29. Qc3 {[%clk 0:01:04]} 29... Rf5 {[%clk 0:01:05.7]} 30. Re1 {[%clk 0:00:57.4]}
30... Qd5 {[%clk 0:01:03]} 31. f3 {[%clk 0:00:51.2]} 31... Rf4 {[%clk
0:00:56.8]} 32. Qe3 {[%clk 0:00:31.1]} 32... Qd4 {[%clk 0:00:52.5]} 33. Qxd4
{[%clk 0:00:27.9]} 33... Rxd4 {[%clk 0:00:53.1]} 34. Rc1 {[%clk 0:00:25]} 34...
Rd5 {[%clk 0:00:53.5]} 35. c6 {[%clk 0:00:24.9]} 35... b6 {[%clk 0:00:53.8]} 36.
Kf2 {[%clk 0:00:19.6]} 36... Rxe5 {[%clk 0:00:54]} 37. Rd1 {[%clk 0:00:19.1]}
37... Rd5 {[%clk 0:00:54.5]} 38. Rxd5 {[%clk 0:00:18.6]} 38... exd5 {[%clk
0:00:55]} 39. Kg3 {[%clk 0:00:20.1]} 39... Kf7 {[%clk 0:00:55.3]} 40. f4 {[%clk
0:00:21.4]} 40... gxf4+ {[%clk 0:00:55.6]} 41. Kxf4 {[%clk 0:00:22.1]} 41... Kf6
{[%clk 0:00:53]} 42. Ke3 {[%clk 0:00:23.3]} 42... g5 {[%clk 0:00:53.2]} 43. Kd4
{[%clk 0:00:23.2]} 43... Ke6 {[%clk 0:00:54.1]} 44. g4 {[%clk 0:00:23]} 44...
Kd6 {[%clk 0:00:54.3]} 45. h4 {[%clk 0:00:21.2]} 45... gxh4 {[%clk 0:00:54.2]}
0

[Event "Torneo Nuevo Centro. Jornada 10"]
[Site "Chess.com"]
[Date "2020.08.21"]
[Round "9"]
[White "Garcia, Jhoel"]
[Black "Perez Garcia, Jose Miguel"]
[Result "1-0"]
[WhiteElo "2388"]
[BlackElo "2060"]
[TimeControl "180+2"]
[EndTime "12:10:05 PDT"]
[Termination "Victoria de shoels por abandono"]

1. b3 {[%clk 0:03:01.9]} 1... Nf6 {[%clk 0:02:59.8]} 2. Bb2 {[%clk 0:03:03.3]}
2... g6 {[%clk 0:03:01.2]} 3. g3 {[%clk 0:03:04.7]} 3... Bg7 {[%clk 0:03:02.2]}
4. Bg2 {[%clk 0:03:06.2]} 4... O-O {[%clk 0:03:03.4]} 5. c4 {[%clk 0:03:06.2]}
5... d5 {[%clk 0:03:03.8]} 6. cxd5 {[%clk 0:03:05.5]} 6... Nxd5 {[%clk
0:03:05.7]} 7. d4 {[%clk 0:03:06.8]} 7... c5 {[%clk 0:03:05.9]} 8. Nf3 {[%clk
0:02:55.4]} 8... Nc6 {[%clk 0:03:05.4]} 9. O-O {[%clk 0:02:53.3]} 9... cxd4
{[%clk 0:03:03.8]} 10. Nxd4 {[%clk 0:02:54.5]} 10... Nxd4 {[%clk 0:03:02.3]} 11.
Bxd4 {[%clk 0:02:55]} 11... Bxd4 {[%clk 0:03:02.8]} 12. Qxd4 {[%clk 0:02:55.4]}
12... Nf6 {[%clk 0:03:03.8]} 13. Qh4 {[%clk 0:02:54.8]} 13... Qa5 {[%clk
0:03:01.1]} 14. Rc1 {[%clk 0:02:34.8]} 14... Qe5 {[%clk 0:02:51.4]} 15. Nc3
{[%clk 0:02:34.6]} 15... Rb8 {[%clk 0:02:48.5]} 16. Qf4 {[%clk 0:02:06.6]} 16...
Qxf4 {[%clk 0:02:45.9]} 17. gxf4 {[%clk 0:02:05.4]} 17... Be6 {[%clk 0:02:46.8]}
18. Nb5 {[%clk 0:02:00.1]} 18... a6 {[%clk 0:02:44.5]} 19. Nc7 {[%clk
0:02:00.7]} 19... Bf5 {[%clk 0:02:40.9]} 20. e3 {[%clk 0:01:52.8]} 20... Rfd8
{[%clk 0:02:39]} 21. Rd1 {[%clk 0:01:40.2]} 21... Be4 {[%clk 0:02:39.7]} 22.
Bxe4 {[%clk 0:01:32.4]} 22... Nxe4 {[%clk 0:02:38.4]} 23. Nd5 {[%clk 0:01:33.7]}
23... Kf8 {[%clk 0:02:34.6]} 24. Rd4 {[%clk 0:01:32]} 24... e6 {[%clk
0:02:24.6]} 25. Rxe4 {[%clk 0:01:31.5]} 25... Rxd5 {[%clk 0:02:25.5]} 26. Rc1
{[%clk 0:01:30.2]} 26... Rbd8 {[%clk 0:02:25.7]} 27. a4 {[%clk 0:01:29.1]} 27...
Rd1+ {[%clk 0:02:25.8]} 28. Rxd1 {[%clk 0:01:29.9]} 28... Rxd1+ {[%clk
0:02:27.7]} 29. Kg2 {[%clk 0:01:31.4]} 29... Rd7 {[%clk 0:02:21.7]} 30. Kf3
{[%clk 0:01:31.3]} 30... Ke7 {[%clk 0:02:21.8]} 31. Rb4 {[%clk 0:01:32.8]} 31...
Rc7 {[%clk 0:02:17.7]} 32. Ke4 {[%clk 0:01:33.4]} 32... Kd6 {[%clk 0:02:17.7]}
33. Rb6+ {[%clk 0:01:33.8]} 33... Ke7 {[%clk 0:02:17.8]} 34. h3 {[%clk 0:01:33]}
34... Kf6 {[%clk 0:02:15.6]} 35. Kf3 {[%clk 0:01:32.4]} 35... h6 {[%clk
0:02:15.2]} 36. b4 {[%clk 0:01:31.4]} 36... Kf5 {[%clk 0:02:12.1]} 37. b5 {[%clk
0:01:30]} 37... axb5 {[%clk 0:02:12.5]} 38. Rxb5+ {[%clk 0:01:31.4]} 38... Kf6
{[%clk 0:02:13.8]} 39. a5 {[%clk 0:01:33]} 39... Ke7 {[%clk 0:02:14]} 40. Ke4
{[%clk 0:01:33.6]} 40... Kd6 {[%clk 0:02:14.2]} 41. Rb6+ {[%clk 0:01:34.2]}
41... Ke7 {[%clk 0:02:15.4]} 42. Kd4 {[%clk 0:01:33.5]} 42... Kf6 {[%clk
0:02:12.6]} 43. Ke4 {[%clk 0:01:32.4]} 43... Ke7 {[%clk 0:02:13.7]} 44. Rb1
{[%clk 0:01:30.3]} 44... Kf6 {[%clk 0:02:13.4]} 45. Kd4 {[%clk 0:01:31.3]} 45...
Ke7 {[%clk 0:02:13.4]} 46. Rb2 {[%clk 0:01:28.9]} 46... Kf6 {[%clk 0:02:13.3]}
47. e4 {[%clk 0:01:26.2]} 47... Ke7 {[%clk 0:02:12.1]} 48. e5 {[%clk 0:01:23.7]}
48... Rd7+ {[%clk 0:02:13.2]} 49. Kc4 {[%clk 0:01:22.6]} 49... Kf8 {[%clk
0:02:06.9]} 50. Kb5 {[%clk 0:01:21]} 50... Rd5+ {[%clk 0:01:57]} 51. Kb6 {[%clk
0:01:19.9]} 51... Kg7 {[%clk 0:01:58.2]} 52. Rb5 {[%clk 0:01:19.3]} 52... Rd7
{[%clk 0:01:59.2]} 53. Rc5 {[%clk 0:01:16.2]} 53... Rd2 {[%clk 0:01:53.6]} 54.
Kxb7 {[%clk 0:01:13.9]} 54... Rxf2 {[%clk 0:01:54.4]} 55. a6 {[%clk 0:01:11.7]}
55... Rxf4 {[%clk 0:01:55.6]} 56. Ra5 {[%clk 0:01:12.3]} 56... Rb4+ {[%clk
0:01:56.4]} 57. Kc6 {[%clk 0:01:11.8]} 57... Rc4+ {[%clk 0:01:57.1]} 58. Kd6
{[%clk 0:01:08.4]} 58... Rc8 {[%clk 0:01:57.3]} 59. a7 {[%clk 0:01:09.7]} 59...
Ra8 {[%clk 0:01:59.2]} 60. Kc6 {[%clk 0:01:11.1]} 60... f6 {[%clk 0:01:58.8]}
61. Kb7 {[%clk 0:01:09.6]} 61... Rxa7+ {[%clk 0:01:59.4]} 62. Rxa7 {[%clk
0:01:07.2]} 62... fxe5 {[%clk 0:02:01.3]} 63. Kc6+ {[%clk 0:01:08.5]} 63... Kf6
{[%clk 0:02:02.8]} 64. Kd6 {[%clk 0:01:09.7]} 64... g5 {[%clk 0:02:03.3]} 65.
Ra8 {[%clk 0:01:09.4]} 65... h5 {[%clk 0:02:01.7]} 66. Rf8+ {[%clk 0:01:10.2]}
66... Kg7 {[%clk 0:02:01.7]} 67. Rf1 {[%clk 0:01:09.7]} 67... e4 {[%clk
0:02:01]} 68. Kxe6 {[%clk 0:01:10.7]} 68... Kg6 {[%clk 0:01:57.1]} 69. Ke5
{[%clk 0:01:09.7]} 69... e3 {[%clk 0:01:57.2]} 70. Re1 {[%clk 0:01:10.5]} 70...
e2 {[%clk 0:01:59.1]} 71. Rxe2 {[%clk 0:01:11.7]} 71... g4 {[%clk 0:02:01]} 72.
Kf4 {[%clk 0:01:11.9]} 72... gxh3 {[%clk 0:02:01.6]} 73. Rh2 {[%clk 0:01:13.3]}
73... Kf6 {[%clk 0:02:01.7]} 74. Rxh3 {[%clk 0:01:14.6]} 74... Kg6 {[%clk
0:02:03.6]} 75. Rh4 {[%clk 0:01:16]} 75... Kh6 {[%clk 0:02:04.3]} 76. Kf5 {[%clk
0:01:17.5]} 1